bitfinex/quotes_ETHUSD_20251023
["timestamp","ask_amount","ask_price","bid_price","bid_amount"]
[1761260026645,11.72266325,3855.2,3855.1,1e-08]
[1761260027121,12.31376325,3855.2,3855.1,1e-08]
[1761260027612,15.04876325,3855.2,3855.1,1e-08]
[1761260029708,15.14766325,3855.2,3855.1,1e-08]
[1761260030955,15.65454325,3855.2,3855.1,1e-08]
[1761260037061,5.90495913,3855.2,3855.1,1e-08]
[1761260037345,12.40766325,3855.2,3855.1,1e-08]
[1761260037552,12.91454325,3855.2,3855.1,1e-08]
[1761260037941,12.91554325,3855.2,3855.1,1e-08]
[1761260039026,12.32444325,3855.2,3855.1,1e-08]
[1761260040650,18.71444325,3855.2,3855.1,1e-08]
[1761260041886,14.87625913,3855.2,3855.1,0.46360001]
[1761260042086,13.32105913,3855.2,3855.1,0.46360001]
[1761260042293,13.32105913,3855.2,3855.1,1e-08]
[1761260042455,14.87625913,3855.2,3855.1,1e-08]
[1761260050019,13.32105913,3855.2,3855.1,1e-08]
[1761260051797,15.00585913,3855.2,3855.1,1e-08]
[1761260056417,15.10475913,3855.2,3855.1,1e-08]
[1761260057433,15.00585913,3855.2,3855.1,1e-08]
[1761260069188,15.70491672,3855.2,3855.1,1e-08]
[1761260077483,15.70661594,3855.2,3855.1,1e-08]
[1761260082310,9.31661594,3855.2,3855.1,1e-08]
[1761260083404,9.12273913,3855.2,3855.1,1e-08]
[1761260084476,12.61379768,3855.2,3855.1,1e-08]
[1761260085585,12.71269768,3855.2,3855.1,1e-08]
[1761260088219,12.61379768,3855.2,3855.1,1e-08]
[1761260089292,12.71269768,3855.2,3855.1,1e-08]
[1761260089814,14.10679668,3855.2,3855.1,1e-08]
[1761260090317,12.71269768,3855.2,3855.1,1e-08]
[1761260095388,13.64599632,3855.2,3855.1,1e-08]
[1761260096516,13.54709632,3855.2,3855.1,1e-08]
[1761260096702,13.64599632,3855.2,3855.1,1e-08]
[1761260100016,20.03599632,3855.2,3855.1,1e-08]
[1761260101618,19.93709632,3855.2,3855.1,1e-08]
[1761260104027,14.86225913,3855.2,3855.1,0.71050001]
[1761260104192,15.56206453,3855.2,3855.1,0.71050001]
[1761260104396,15.56206832,3855.2,3855.1,0.71050001]
[1761260105410,14.86225913,3855.2,3855.1,0.71050001]
[1761260109897,11.2322,3855.2,3855.1,0.71050001]
[1761260110930,9.677,3855.2,3855.1,0.71050001]
[1761260111134,13.82609914,3855.2,3855.1,0.71050001]
[1761260111931,7.43609914,3855.2,3855.1,0.71050001]
[1761260113927,7.56569914,3855.2,3855.1,0.71050001]
[1761260118434,4.9718,3855.2,3855.1,0.71050001]
[1761260119943,7.56569914,3855.2,3855.1,0.71050001]
[1761260120334,8.58164624,3855.2,3855.1,0.23740001]
[1761260120561,8.58164624,3855.2,3855.1,1e-08]
[1761260126668,5.9877471,3855.2,3855.1,0.47310001]
[1761260126841,7.56569914,3855.2,3855.1,0.47310001]
[1761260127371,4.9718,3855.2,3855.1,0.47310001]
[1761260127540,7.56569914,3855.2,3855.1,0.47310001]
[1761260129165,4.9718,3855.2,3855.1,0.47310001]
[1761260129876,7.56569914,3855.2,3855.1,0.47310001]
[1761260140090,8.58164643,3855.2,3855.1,1e-08]
[1761260142192,8.58164643,3855.2,3855.1,0.46980001]
[1761260143492,8.58164643,3855.2,3855.1,1e-08]
[1761260143702,8.58164643,3855.2,3855.1,0.70550001]
[1761260143994,8.58164643,3855.2,3855.1,1e-08]
[1761260144768,8.58164643,3855.2,3855.1,0.23570001]
[1761260144993,8.58064643,3855.2,3855.1,0.70550001]
[1761260149706,5.98674729,3855.2,3855.1,0.70550001]
[1761260149888,8.58064643,3855.2,3855.1,0.70550001]
[1761260150911,1.6858,3855.2,3855.1,0.70550001]
[1761260151091,4.9708,3855.2,3855.1,0.70550001]
[1761260151914,3.286,3855.2,3855.1,0.70550001]
[1761260152220,3.286,3855.2,3855.1,4.07872668]
[1761260152783,3.286,3855.2,3855.1,1.48476025]
[1761260153006,3.286,3855.2,3855.1,4.07872668]
[1761260153995,3.286,3855.2,3855.1,1.48476025]
[1761260154522,3.286,3855.2,3855.1,4.07872668]
[1761260157792,0.001,3855.2,3855.1,4.07872668]
[1761260157992,0.001,3855.2,3855.1,4.20832668]
[1761260166755,0.001,3855.2,3855.1,4.20872668]
[1761260170156,0.001,3855.2,3855.1,1.61476025]
[1761260170443,0.001,3855.2,3855.1,0.77926025]
[1761260177637,0.001,3855.2,3855.1,3.37322668]
[1761260177841,0.001,3855.2,3855.1,3.84342668]
[1761260184279,0.001,3855.2,3855.1,0.77926025]
[1761260184495,7.35167084,3855.2,3855.1,1e-08]
[1761260184649,8.80411461,3855.2,3855.1,1e-08]
[1761260192098,9.31099461,3855.2,3855.1,1e-08]
[1761260192781,9.70110958,3855.2,3855.1,1e-08]
[1761260193097,10.63440822,3855.2,3855.1,1e-08]
[1761260193291,9.70110958,3855.2,3855.1,1e-08]
[1761260194494,12.98310958,3855.2,3855.1,1e-08]
[1761260194788,13.91640822,3855.2,3855.1,1e-08]
[1761260195387,12.98310958,3855.2,3855.1,1e-08]
[1761260195757,13.91640822,3855.2,3855.1,1e-08]
[1761260195962,13.11861958,3855.2,3855.1,1e-08]
[1761260197996,19.50861958,3855.2,3855.1,1e-08]
[1761260200573,20.43739676,3855.2,3855.1,1e-08]
[1761260201367,20.5413478,3855.2,3855.1,1e-08]
[1761260202306,22.34757062,3855.2,3855.1,1e-08]
[1761260206324,23.2763478,3855.2,3855.1,1e-08]
[1761260207120,25.2233478,3855.2,3855.1,1e-08]
[1761260207421,25.11939676,3855.2,3855.1,1e-08]
[1761260210222,24.19061958,3855.2,3855.1,1e-08]
[1761260213316,25.58471858,3855.2,3855.1,1e-08]
[1761260215325,24.19061958,3855.2,3855.1,1e-08]
[1761260225259,26.03334957,3855.2,3855.1,1e-08]
[1761260230338,1.53771196,3855.2,3855.1,0.70300001]
[1761260230536,5.87689914,3855.2,3855.1,0.70300001]
[1761260230740,7.43209914,3855.2,3855.1,1.16930001]
[1761260231334,5.87689914,3855.2,3855.1,1.16930001]
[1761260231657,7.43209914,3855.2,3855.1,1.16930001]
[1761260234970,4.8382,3855.2,3855.1,1.16930001]
[1761260235466,7.43209914,3855.2,3855.1,1.16930001]
[1761260240367,7.56169914,3855.2,3855.1,1.16930001]
[1761260246607,7.56169914,3855.2,3855.1,0.70300001]
[1761260246974,7.56169914,3855.2,3855.1,1.15460001]
[1761260253073,7.56169914,3855.2,3855.1,0.46630001]
[1761260253308,7.56169914,3855.2,3855.1,1e-08]
[1761260253309,8.88749494,3855.2,3855.1,1e-08]
[1761260255080,9.39437494,3855.2,3855.1,1e-08]
[1761260255475,7.83917494,3855.2,3855.1,1e-08]
[1761260255680,7.93927494,3855.2,3855.1,1e-08]
[1761260256112,7.83917494,3855.2,3855.1,1e-08]
[1761260257296,10.19219111,3855.2,3855.1,1e-08]
[1761260257582,16.58219111,3855.2,3855.1,1e-08]
[1761260258395,15.88447494,3855.2,3855.1,1e-08]
[1761260260000,15.78437494,3855.2,3855.1,1e-08]
[1761260262623,18.51637494,3855.2,3855.1,1e-08]
[1761260262810,15.78437494,3855.2,3855.1,1e-08]
[1761260269440,15.78437494,3855.2,3855.1,0.43560001]
[1761260269639,15.78437494,3855.2,3855.1,1e-08]
[1761260281367,16.71835248,3855.2,3855.1,1e-08]
[1761260282674,19.45035248,3855.2,3855.1,1e-08]
[1761260282866,16.71835248,3855.2,3855.1,1e-08]
[1761260284066,10.36944112,3855.2,3855.1,0.66840001]
[1761260284266,9.669,3855.2,3855.1,0.66840001]
[1761260284771,11.2242,3855.2,3855.1,0.66840001]
[1761260287173,4.8342,3855.2,3855.1,0.66840001]
[1761260289342,7.42809914,3855.2,3855.1,0.23190001]
[1761260289545,8.74053519,3855.2,3855.1,1e-08]
[1761260294081,8.87013519,3855.2,3855.1,1e-08]
[1761260294789,9.37701519,3855.2,3855.1,1e-08]
[1761260296085,10.07745631,3855.2,3855.1,1e-08]
[1761260296286,9.37701519,3855.2,3855.1,1e-08]
[1761260298989,16.70099273,3855.2,3855.1,1e-08]
[1761260299394,15.76701519,3855.2,3855.1,1e-08]
[1761260302001,16.46649534,3855.2,3855.1,1e-08]
[1761260302502,16.46651009,3855.2,3855.1,1e-08]
[1761260302707,15.76701519,3855.2,3855.1,1e-08]
[1761260304910,16.46652936,3855.2,3855.1,1e-08]
[1761260305098,15.76701519,3855.2,3855.1,1e-08]
[1761260309411,16.33697654,3855.2,3855.1,0.69320001]
[1761260309614,14.45457914,3855.2,3855.1,0.69320001]
[1761260310511,13.94769914,3855.2,3855.1,0.69320001]
[1761260315819,14.55467914,3855.2,3855.1,1e-08]
[1761260315995,14.45457914,3855.2,3855.1,1e-08]
[1761260316318,16.57839844,3855.2,3855.1,1e-08]
[1761260316704,17.27795979,3855.2,3855.1,0.46450001]
[1761260316913,17.27795979,3855.2,3855.1,1e-08]
[1761260318188,16.57839844,3855.2,3855.1,1e-08]
[1761260318413,17.27834723,3855.2,3855.1,1e-08]
[1761260319189,16.57839844,3855.2,3855.1,1e-08]
[1761260323333,17.27847296,3855.2,3855.1,1e-08]
[1761260324221,16.57839844,3855.2,3855.1,1e-08]
[1761260330007,16.57839844,3855.2,3855.1,0.46450001]
[1761260331236,16.07151844,3855.2,3855.1,0.46450001]
[1761260331542,16.77173928,3855.2,3855.1,0.69320001]
[1761260331842,14.64791998,3855.2,3855.1,0.69320001]
[1761260332206,11.36991998,3855.2,3855.1,0.69320001]
[1761260332408,14.64491998,3855.2,3855.1,0.69320001]
[1761260336426,13.94469914,3855.2,3855.1,0.69320001]
[1761260337016,14.64491998,3855.2,3855.1,0.69320001]
[1761260340450,14.64491998,3855.2,3855.1,1.47256755]
[1761260348390,1.6858,3855.2,3855.1,1.47256755]
[1761260348550,4.9598,3855.2,3855.1,1.47256755]
[1761260351086,3.4046,3855.2,3855.1,1.47256755]
[1761260351488,3.275,3855.2,3855.1,1.47256755]
[1761260358169,5.86889914,3855.2,3855.1,0.77936755]
[1761260358786,7.42409914,3855.2,3855.1,0.77936755]
[1761260362964,7.42409914,3855.2,3855.1,0.77936755]
[1761260383734,8.5593529,3855.2,3855.1,0.77936755]
[1761260383898,9.35857374,3855.2,3855.1,1e-08]
[1761260384112,8.6583529,3855.2,3855.1,1e-08]
[1761260384304,9.59233044,3855.2,3855.1,1e-08]
[1761260384839,8.6583529,3855.2,3855.1,1e-08]
[1761260385335,9.5916527,3855.2,3855.1,1e-08]
[1761260387746,10.0985327,3855.2,3855.1,1e-08]
[1761260387946,9.1652329,3855.2,3855.1,1e-08]
[1761260388452,10.09809028,3855.2,3855.1,1e-08]
[1761260390923,16.48809028,3855.2,3855.1,1e-08]
[1761260392357,15.5552329,3855.2,3855.1,1e-08]
[1761260399965,15.4562329,3855.2,3855.1,1e-08]
[1761260400958,15.5552329,3855.2,3855.1,1e-08]
[1761260401161,15.4562329,3855.2,3855.1,1e-08]
[1761260401879,15.4562329,3855.2,3855.1,0.68110001]
[1761260402177,10.66969914,3855.2,3855.1,0.68110001]
[1761260402376,13.94169914,3855.2,3855.1,0.68110001]
[1761260402577,13.94169914,3855.2,3855.1,1.46046756]
[1761260404550,13.94169914,3855.2,3855.1,1.00506756]
[1761260404878,14.64077884,3855.2,3855.1,0.77936756]
[1761260405193,16.67449514,3855.2,3855.1,0.77936756]
[1761260405999,16.67449514,3855.2,3855.1,1.46046756]
[1761260406564,16.67449514,3855.2,3855.1,1.23476756]
[1761260406977,19.07798905,3855.2,3855.1,1.46046756]
[1761260407176,13.94169914,3855.2,3855.1,1.46046756]
[1761260409916,4.9578,3855.2,3855.1,1.46046756]
[1761260410574,7.55169914,3855.2,3855.1,1.46046756]
[1761260410770,7.55169914,3855.2,3855.1,1.00506756]
[1761260410970,7.55169914,3855.2,3855.1,0.77936756]
[1761260411170,7.55169914,3855.2,3855.1,1.23476756]
[1761260411398,7.55169914,3855.2,3855.1,1.46046756]
[1761260415734,4.9578,3855.2,3855.1,1.46046756]
[1761260416590,7.55169914,3855.2,3855.1,1.46046756]
[1761260418882,4.9578,3855.2,3855.1,1.46046756]
[1761260419620,7.55169914,3855.2,3855.1,1.46046756]
[1761260423105,7.55169914,3855.2,3855.1,0.77936756]
[1761260424313,7.55169914,3855.2,3855.1,1.23476756]
[1761260424518,7.55169914,3855.2,3855.1,1.46046756]
[1761260433837,0.001,3855.2,3855.1,1.44046756]
[1761260434039,0.001,3855.2,3855.1,4.03443399]
[1761260434335,0.001,3855.2,3855.1,1.44046756]
[1761260435039,0.001,3855.2,3855.1,4.03443399]
[1761260436226,0.001,3855.2,3855.1,1.44046756]
[1761260438417,0.001,3855.2,3855.1,0.77936756]
[1761260438637,2.59489914,3855.2,3855.1,0.77936756]
[1761260441473,7.6389278,3855.2,3855.1,0.77936756]
[1761260441753,8.58379944,3855.2,3855.1,0.77936756]
[1761260443654,8.48479944,3855.2,3855.1,0.77936756]
[1761260443839,8.61439944,3855.2,3855.1,0.77936756]
[1761260444421,8.71339944,3855.2,3855.1,0.77936756]
[1761260448765,9.22027944,3855.2,3855.1,1e-08]
[1761260453285,9.9191541,3855.2,3855.1,1e-08]
[1761260453592,16.3091541,3855.2,3855.1,1e-08]
[1761260460688,16.2101541,3855.2,3855.1,1e-08]
[1761260462123,16.3091541,3855.2,3855.1,1e-08]
[1761260463492,16.2101541,3855.2,3855.1,1e-08]
[1761260464222,10.66969914,3855.2,3855.1,0.47430001]
[1761260464409,10.66969914,3855.2,3855.1,0.71020001]
[1761260467289,9.11449914,3855.2,3855.1,0.71020001]
[1761260468126,10.66969914,3855.2,3855.1,0.71020001]
[1761260469084,10.66969914,3855.2,3855.1,1e-08]
[1761260469640,12.48622399,3855.2,3855.1,1e-08]
[1761260470098,13.18509865,3855.2,3855.1,1e-08]
[1761260473020,11.3685738,3855.2,3855.1,1e-08]
[1761260473189,11.3685738,3855.2,3855.1,0.47430001]
[1761260473591,11.3685738,3855.2,3855.1,0.71020001]
[1761260477346,10.66969914,3855.2,3855.1,1e-08]
[1761260480534,10.76869914,3855.2,3855.1,1e-08]
[1761260480701,12.87411939,3855.2,3855.1,1e-08]
[1761260481103,12.77511939,3855.2,3855.1,1e-08]
[1761260485314,13.70797677,3855.2,3855.1,1e-08]
[1761260486026,13.80697677,3855.2,3855.1,1e-08]
[1761260486221,13.70797677,3855.2,3855.1,1e-08]
[1761260486621,13.80697677,3855.2,3855.1,1e-08]
[1761260487344,14.31385677,3855.2,3855.1,1e-08]
[1761260487525,13.38099939,3855.2,3855.1,1e-08]
[1761260487844,14.31485075,3855.2,3855.1,1e-08]
[1761260488655,14.31485075,3855.2,3854.7,0.002]
[1761260488656,13.68786756,3855.2,3854.7,0.002]
[1761260488829,6.58987696,3854.8,3854.7,0.002]
[1761260489157,6.58987696,3854.8,3854.3,0.002]
[1761260489158,3.10131752,3854.4,3854.3,0.002]
[1761260489357,11.54294618,3854.4,3854.3,0.002]
[1761260489650,13.44164658,3854.4,3854.3,0.002]
[1761260490356,14.37434394,3854.4,3854.3,0.002]
[1761260491335,13.44164658,3854.4,3854.3,0.002]
[1761260492470,13.12814658,3854.4,3854.3,0.002]
[1761260495039,19.51814658,3854.4,3854.3,0.002]
[1761260496274,20.21656882,3854.4,3854.3,0.002]
[1761260497378,20.31556882,3854.4,3854.3,0.002]
[1761260498557,16.44168882,3854.4,3854.3,0.002]
[1761260498884,10.66923752,3854.4,3854.3,0.446]
[1761260499092,13.93823752,3854.4,3854.3,0.446]
[1761260500484,17.04185086,3854.4,3854.3,0.002]
[1761260500679,19.07531356,3854.4,3854.3,0.002]
[1761260500889,17.04185086,3854.4,3854.3,0.002]
[1761260501391,13.93823752,3854.4,3854.3,0.002]
[1761260501553,17.04185086,3854.4,3854.3,0.446]
[1761260504246,17.04185086,3854.4,3854.3,0.002]
[1761260506890,17.04185086,3854.4,3854.3,0.446]
[1761260507791,17.04185086,3854.4,3854.3,0.002]
[1761260507990,19.07531357,3854.4,3854.3,0.002]
[1761260510058,19.58219357,3854.4,3854.3,0.002]
[1761260512296,20.28061581,3854.4,3854.3,0.002]
[1761260512497,13.89061581,3854.4,3854.3,0.002]
[1761260514895,13.99191581,3854.4,3854.3,0.002]
[1761260516199,13.89061581,3854.4,3854.3,0.002]
[1761260516413,13.19219357,3854.4,3854.3,0.002]
[1761260518508,10.08858023,3854.4,3854.3,0.002]
[1761260518801,7.54723752,3854.4,3854.3,0.446]
[1761260518994,8.24736728,3854.4,3854.3,0.446]
[1761260521230,6.69216728,3854.4,3854.3,0.446]
[1761260523016,8.24736728,3854.4,3854.3,0.446]
[1761260527290,7.54723752,3854.4,3854.3,0.446]
[1761260536927,7.54723752,3854.4,3854.3,0.002]
[1761260537533,10.65085086,3854.4,3854.3,0.002]
[1761260546038,13.15190882,3854.4,3854.3,0.002]
[1761260546342,13.25540882,3854.4,3854.3,0.002]
[1761260546518,12.32271146,3854.4,3854.3,0.002]
[1761260546719,12.82959146,3854.4,3854.3,0.002]
[1761260548138,15.9332048,3854.4,3854.3,0.002]
[1761260548330,17.46992093,3854.4,3854.3,0.002]
[1761260550230,16.06871709,3854.4,3854.3,0.002]
[1761260551342,22.45871709,3854.4,3854.3,0.002]
[1761260553412,3.10158679,3854.0,3853.9,0.002]
[1761260553613,12.55746509,3854.0,3853.9,0.002]
[1761260553932,12.66096509,3854.0,3853.9,0.002]
[1761260554118,11.26050013,3854.0,3853.9,0.002]
[1761260560750,11.65070463,3854.0,3853.9,0.002]
[1761260560946,13.75849389,3854.0,3853.9,0.002]
[1761260562169,14.69073525,3854.0,3853.9,0.002]
[1761260563132,20.14849389,3854.0,3853.9,0.002]
[1761260564625,18.59329389,3854.0,3853.9,0.002]
[1761260566979,20.14849389,3854.0,3853.9,0.002]
[1761260568380,18.59329389,3854.0,3853.9,0.002]
[1761260568773,13.75849389,3854.0,3853.9,0.002]
[1761260569655,13.65499389,3854.0,3853.9,0.002]
[1761260569857,13.75849389,3854.0,3853.9,0.002]
[1761260572288,15.15895885,3854.0,3853.9,0.002]
[1761260577071,15.05545885,3854.0,3853.9,0.002]
[1761260577275,13.65499389,3854.0,3853.9,0.002]
[1761260577683,13.75849389,3854.0,3853.9,0.002]
[1761260578790,13.89402651,3854.0,3853.9,0.002]
[1761260580363,13.79052651,3854.0,3853.9,0.002]
[1761260581275,13.89402651,3854.0,3853.9,0.002]
[1761260581474,14.36322651,3854.0,3853.9,0.002]
[1761260583078,8.15087396,3853.6,3853.5,0.002]
[1761260583403,11.54747396,3853.6,3853.5,0.002]
[1761260583704,12.01667396,3853.6,3853.5,0.002]
[1761260584405,11.54747396,3853.6,3853.5,0.002]
[1761260587005,17.93747396,3853.6,3853.5,0.002]
[1761260587175,20.26001644,3853.6,3853.5,0.002]
[1761260591139,20.35901644,3853.6,3853.5,0.002]
[1761260592220,20.26001644,3853.6,3853.5,0.002]
[1761260592446,20.35901644,3853.6,3853.5,0.002]
[1761260592952,20.26001644,3853.6,3853.5,0.002]
[1761260593123,20.35901644,3853.6,3853.5,0.002]
[1761260593751,2.5959866,3852.1,3851.9,0.4692]
[1761260593943,11.61222563,3852.1,3852.0,0.7051]
[1761260594144,11.04160444,3852.1,3852.0,0.7051]
[1761260594462,11.74130928,3852.1,3852.0,0.7051]
[1761260595443,11.04160444,3852.1,3852.0,0.7051]
[1761260595655,11.74130928,3852.1,3852.0,0.7051]
[1761260596027,11.04160444,3852.1,3852.0,0.7051]
[1761260597138,4.15125399,3852.0,3851.9,0.2207]
[1761260597332,4.15125399,3852.0,3851.9,0.6899]
[1761260598173,4.15138879,3851.8,3851.7,0.7004]
[1761260598357,2.59662585,3851.2,3850.7,0.1296]
[1761260598659,5.86366069,3851.1,3850.1,0.002]
[1761260598837,5.86366069,3851.1,3850.6,0.1296]
[1761260599030,7.41886069,3851.1,3850.1,0.002]
[1761260599226,7.41886069,3851.1,3850.4,0.1296]
[1761260599475,7.41886069,3851.1,3851.0,0.6855]
[1761260599832,7.41886069,3851.1,3851.0,0.9018]
[1761260616990,7.41886069,3851.1,3851.0,0.9038]
[1761260617303,7.41886069,3851.1,3851.0,0.2183]
[1761260617608,7.41886069,3851.1,3851.0,0.6511]
[1761260617808,1.5552,3851.1,3851.0,0.6511]
[1761260618004,4.8232,3851.1,3851.0,0.6511]
[1761260619522,7.41986069,3851.1,3851.0,0.6511]
[1761260620689,10.5295702,3851.1,3851.0,0.6511]
[1761260623828,1.5552,3851.1,3851.0,0.6511]
[1761260623997,4.8232,3851.1,3851.0,0.6511]
[1761260626735,0.83292313,3851.6,3851.0,0.6511]
[1761260626937,1.5552,3851.4,3851.2,2.59657701]
[1761260627127,1.5552,3851.4,3851.1,3.02944547]
[1761260627304,1.5552,3851.4,3851.3,0.2175]
[1761260627505,1.5552,3851.4,3851.3,0.99753018]
[1761260627702,1.5552,3851.4,3851.3,1.43033018]
[1761260631255,2.59605849,3852.0,3851.3,1.43033018]
[1761260631256,0.69730867,3852.5,3851.4,2.59645843]
[1761260631438,2.59538673,3853.0,3852.4,0.2175]
[1761260631637,2.59538673,3853.0,3852.5,0.4328]
[1761260631638,1.5552,3852.8,3852.5,0.4328]
[1761260632155,1.5552,3852.8,3852.5,1.21260512]
[1761260632318,1.5552,3852.8,3852.6,0.4328]
[1761260633445,4.15076602,3852.8,3852.6,0.4328]
[1761260634050,3.267,3852.7,3852.6,0.4328]
[1761260634237,4.8222,3852.7,3852.6,0.4328]
[1761260636555,4.8222,3852.7,3852.6,1.21260512]
[1761260638435,4.8222,3852.7,3852.6,0.77980512]
[1761260638632,4.8222,3852.7,3852.6,1.21260512]
[1761260641084,4.8222,3852.7,3852.6,0.77980512]
[1761260641085,7.41778231,3852.7,3852.6,0.77980512]
[1761260641306,8.95868147,3852.7,3852.6,0.77980512]
[1761260641468,2.59572774,3852.5,3852.0,0.8066]
[1761260641813,6.37570951,3852.4,3852.1,0.4595]
[1761260642992,3.266,3852.3,3852.2,2.59586509]
[1761260643193,3.266,3852.3,3852.2,3.05536509]
[1761260644566,3.266,3852.3,3852.2,0.4595]
[1761260645827,3.266,3852.3,3852.2,3.05541921]
[1761260646328,3.266,3852.3,3852.2,0.4595]
[1761260646634,3.266,3852.3,3852.0,0.3471]
[1761260646820,3.266,3852.3,3852.0,0.8066]
[1761260646991,3.266,3852.3,3852.1,0.4595]
[1761260651690,3.266,3852.3,3852.1,0.4595]
[1761260652943,3.266,3852.3,3852.1,3.05548447]
[1761260653313,3.266,3852.3,3852.2,0.4595]
[1761260659643,3.266,3852.3,3852.2,3.05541921]
[1761260660174,3.266,3852.3,3852.2,0.4595]
[1761260664661,3.266,3852.3,3852.1,3.05748095]
[1761260665560,3.266,3852.3,3852.1,2.59798095]
[1761260665761,3.266,3852.3,3852.2,0.4595]
[1761260667971,3.266,3852.3,3852.1,2.59794618]
[1761260668171,3.266,3852.3,3852.1,0.002]
[1761260671003,3.3956,3852.3,3852.1,0.002]
[1761260677704,3.3956,3852.3,3852.2,0.4694]
[1761260683094,3.3956,3852.3,3852.1,0.002]
[1761260683634,0.1296,3852.3,3852.1,0.002]
[1761260683795,0.1296,3852.5,3852.2,0.6889]
[1761260683990,0.1296,3852.5,3852.2,3.28477121]
[1761260683991,3.265,3852.4,3852.2,3.28477121]
[1761260684226,4.8202,3852.4,3852.3,0.4694]
[1761260684525,4.8202,3852.4,3852.3,3.06525182]
[1761260688939,0.1296,3852.5,3852.4,2.59578444]
[1761260689106,3.265,3852.5,3852.4,3.06518444]
[1761260702078,3.265,3852.5,3852.4,3.8449774]
[1761260703372,3.265,3852.5,3852.4,3.3755774]
[1761260703927,3.265,3852.5,3852.4,3.8468774]
[1761260706362,3.265,3852.5,3852.4,0.77979296]
[1761260706549,3.94102899,3852.5,3852.1,2.59792176]
[1761260706750,3.3946,3852.5,3852.1,2.59792176]
[1761260706949,3.3946,3852.5,3852.1,1.25309296]
[1761260707149,3.265,3852.5,3852.1,1.00739296]
[1761260707355,3.265,3852.5,3852.4,2.59578444]
[1761260707731,3.265,3852.5,3852.4,3.06708444]
[1761260708362,3.265,3852.5,3852.4,3.06908444]
[1761260708531,3.265,3852.5,3852.4,3.8488774]
[1761260716661,3.265,3852.5,3852.4,3.3775774]
[1761260716896,3.265,3852.5,3852.4,0.78179296]
[1761260718276,3.265,3852.5,3852.4,3.3775774]
[1761260725699,3.265,3852.5,3852.4,3.8488774]
[1761260728907,3.265,3852.5,3852.4,0.78179296]
[1761260729280,3.265,3852.5,3852.4,3.3775774]
[1761260730580,3.265,3852.5,3852.4,0.78179296]
[1761260730775,3.3654,3852.5,3852.4,0.78179296]
[1761260731089,3.265,3852.5,3852.4,3.3775774]
[1761260733617,3.265,3852.5,3852.4,3.8177774]
[1761260736322,3.265,3852.5,3852.4,3.3775774]
[1761260738831,3.265,3852.5,3852.4,3.8177774]
[1761260739123,3.265,3852.5,3852.4,3.3775774]
[1761260745311,3.265,3852.5,3852.4,0.78179296]
[1761260745699,3.265,3852.5,3852.4,0.002]
[1761260745901,3.364,3852.5,3852.4,0.002]
[1761260746753,8.11086986,3852.5,3852.4,0.002]
[1761260746955,7.64451706,3852.5,3852.4,0.002]
[1761260747326,8.34566783,3852.5,3852.4,0.002]
[1761260747511,7.74850945,3852.5,3852.4,0.002]
[1761260748244,8.44905948,3852.5,3852.4,0.002]
[1761260749722,9.95749064,3852.5,3852.4,0.002]
[1761260750318,9.25694061,3852.5,3852.4,0.002]
[1761260753843,9.15794061,3852.5,3852.4,0.002]
[1761260754046,9.25694061,3852.5,3852.4,0.002]
[1761260756021,9.15794061,3852.5,3852.4,0.002]
[1761260756956,9.25694061,3852.5,3852.4,0.002]
[1761260759253,0.001,3853.1,3852.4,0.4736]
[1761260759420,0.001,3853.1,3852.4,0.57757428]
[1761260759421,1.5552,3852.9,3852.4,0.57757428]
[1761260759925,1.5552,3852.9,3852.4,0.4736]
[1761260760148,1.5552,3852.9,3852.5,0.57757428]
[1761260760521,1.5552,3852.9,3852.5,1.04917428]
[1761260760953,1.5552,3852.9,3852.5,0.4716]
[1761260761257,1.5552,3852.9,3852.6,0.77980715]
[1761260761861,1.5552,3852.9,3852.4,2.59777618]
[1761260762158,1.5552,3852.9,3852.4,3.06937618]
[1761260762358,1.5552,3852.9,3852.4,0.4736]
[1761260762959,0.136,3852.8,3852.4,0.002]
[1761260763145,3.263,3852.7,3852.4,0.002]
[1761260763460,3.3627,3852.7,3852.4,0.002]
[1761260763627,4.66121625,3852.6,3852.4,0.002]
[1761260763822,4.96690868,3852.5,3852.4,0.002]
[1761260764051,5.76715871,3852.5,3852.4,0.002]
[1761260764634,5.57348868,3852.5,3852.4,0.002]
[1761260767326,9.70488825,3852.5,3852.4,0.002]
[1761260767527,6.97188825,3852.5,3852.4,0.002]
[1761260769266,7.10148825,3852.5,3852.4,0.002]
[1761260772530,5.70308868,3852.5,3852.4,0.002]
[1761260774266,4.14788868,3852.5,3852.4,0.002]
[1761260775163,8.70940493,3852.5,3852.4,0.002]
[1761260775362,8.80910493,3852.5,3852.4,0.002]
[1761260777235,8.70940493,3852.5,3852.4,0.002]
[1761260777436,8.80910493,3852.5,3852.4,0.002]
[1761260777836,7.25390493,3852.5,3852.4,0.002]
[1761260778339,8.80910493,3852.5,3852.4,0.002]
[1761260782467,8.70940493,3852.5,3852.4,0.002]
[1761260782644,8.80910493,3852.5,3852.4,0.002]
[1761260788285,10.2075045,3852.5,3852.4,0.002]
[1761260788487,8.80910493,3852.5,3852.4,0.002]
[1761260789161,10.2075045,3852.5,3852.4,0.002]
[1761260791802,10.2075045,3852.5,3852.4,0.002]
[1761260792300,8.70940493,3852.5,3852.4,0.002]
[1761260792464,8.80910493,3852.5,3852.4,0.002]
[1761260793583,8.70940493,3852.5,3852.4,0.002]
[1761260793784,8.80910493,3852.5,3852.4,0.002]
[1761260796878,8.70940493,3852.5,3852.4,0.002]
[1761260798580,8.80910493,3852.5,3852.4,0.002]
[1761260802691,8.70940493,3852.5,3852.4,0.002]
[1761260804914,9.10013145,3852.5,3852.4,0.002]
[1761260806422,9.19983145,3852.5,3852.4,0.002]
[1761260808717,9.10013145,3852.5,3852.4,0.002]
[1761260808928,11.06708795,3852.5,3852.4,0.002]
[1761260813738,10.96738795,3852.5,3852.4,0.002]
[1761260814738,11.06708795,3852.5,3852.4,0.002]
[1761260814947,10.96738795,3852.5,3852.4,0.002]
[1761260817244,3.10279921,3852.2,3852.1,0.002]
[1761260817543,8.55356969,3852.2,3852.1,0.002]